fUSD/lending_fUSD_20250622
["ID","MTS","AMOUNT","RATE_DAILY","PERIOD"]
[367016333,1750618157511,-799.82,0.00041369,120]
[367016335,1750618157556,-8511.24,0.00041369,120]
[367016338,1750618157598,-2109.67,0.00041369,120]
[367016340,1750618157639,-3864.78,0.00041369,120]
[367016343,1750618157683,-4272.94,0.00041369,120]
[367016345,1750618157726,-1756.48,0.00041369,120]
[367016347,1750618157769,-1838.01,0.00041369,120]
[367016350,1750618157812,-3059.84,0.00041369,120]
[367016352,1750618157853,-1769.01,0.00041369,120]
[367016354,1750618157892,-580.63,0.00041369,120]
[367016357,1750618157930,-11832.14,0.00041369,120]
[367016359,1750618157969,-1958.17,0.00041369,120]
[367016362,1750618158016,-589.19,0.00041369,120]
[367016364,1750618158063,-1152.42,0.00041369,120]
[367016367,1750618158106,-551.09,0.00041369,120]
[367016369,1750618158146,-1197.21,0.00041369,120]
[367016372,1750618158188,-523.62,0.00041369,120]
[367016374,1750618158232,-1903.3,0.00041369,120]
[367016376,1750618158273,-301.34,0.00041369,120]
[367016379,1750618158315,-41951.75,0.00041369,120]
[367016381,1750618158356,-1828.61,0.00041369,120]
[367016383,1750618158397,-230.08,0.00041369,120]
[367016384,1750618158441,-3014.92,0.00041369,120]
[367016385,1750618158485,-1352.4,0.00041369,120]
[367016386,1750618158535,-1711.97,0.00041369,120]
[367016388,1750618158577,-276.0,0.00041369,120]
[367016390,1750618158621,-2797.07,0.00041369,120]
[367016393,1750618158663,-779.13,0.00041369,120]
[367016395,1750618158706,-1418.85,0.00041369,120]
[367016397,1750618158752,-2473.15,0.00041369,120]
[367016400,1750618158796,-989.05,0.00041369,120]
[367016403,1750618158845,-1632.78,0.00041369,120]
[367016415,1750618159204,-2080.35,0.00041369,120]
[367016418,1750618159250,-7153.65,0.00041369,120]
[367016420,1750618159292,-5241.95,0.00041369,120]
[367016422,1750618159335,-24605.25,0.00041369,120]
[367016424,1750618159377,-4415.41,0.00041369,120]
[367016426,1750618159421,-1155.43,0.00041369,120]
[367016428,1750618159463,-2128.15,0.00041369,120]
[367016431,1750618159507,-150.0,0.00041452,120]
[367016432,1750618159550,-150.55245506,0.00041479,120]
[367016435,1750618159593,-19637.55,0.000415,120]
[367016437,1750618159637,-20355.65,0.000415,120]
[367016439,1750618159687,-667.56188674,0.0004158,120]
[367016441,1750618159727,-825.0,0.00041643,120]
[367016442,1750618159770,-931.74,0.00041643,120]
[367016444,1750618159813,-836.55,0.00041643,120]
[367016446,1750618159857,-1127.97,0.00041643,120]
[367016449,1750618159903,-1762.54,0.00041643,120]
[367016450,1750618159947,-799.82,0.00041643,120]
[367016453,1750618159991,-8511.24,0.00041643,120]
[367016455,1750618160035,-2109.67,0.00041643,120]
[367016457,1750618160077,-3864.78,0.00041643,120]
[367016459,1750618160130,-4272.94,0.00041643,120]
[367016461,1750618160176,-1756.48,0.00041643,120]
[367016463,1750618160216,-1838.01,0.00041643,120]
[367016465,1750618160254,-3059.84,0.00041643,120]
[367016467,1750618160292,-1769.01,0.00041643,120]
[367016468,1750618160338,-580.63,0.00041643,120]
[367016471,1750618160380,-11832.14,0.00041643,120]
[367016473,1750618160421,-1958.17,0.00041643,120]
[367016474,1750618160462,-589.19,0.00041643,120]
[367016477,1750618160503,-1152.42,0.00041643,120]
[367016478,1750618160544,-551.09,0.00041643,120]
[367016481,1750618160586,-1197.21,0.00041643,120]
[367016483,1750618160626,-523.62,0.00041643,120]
[367016484,1750618160668,-1903.3,0.00041643,120]
[367016487,1750618160720,-41951.75,0.00041643,120]
[367016489,1750618160765,-1828.61,0.00041643,120]
[367016491,1750618160804,-3014.92,0.00041643,120]
[367016493,1750618160843,-1352.4,0.00041643,120]
[367016495,1750618160882,-1711.97,0.00041643,120]
[367016497,1750618160920,-2797.07,0.00041643,120]
[367016499,1750618160961,-779.13,0.00041643,120]
[367016501,1750618161000,-1418.85,0.00041643,120]
[367016503,1750618161040,-2473.15,0.00041643,120]
[367016505,1750618161080,-989.05,0.00041643,120]
[367016507,1750618161122,-1632.78,0.00041643,120]
[367016509,1750618161160,-2080.35,0.00041643,120]
[367016511,1750618161198,-7153.65,0.00041643,120]
[367016513,1750618161238,-5241.95,0.00041643,120]
[367016515,1750618161280,-24605.25,0.00041643,120]
[367016517,1750618161325,-4415.41,0.00041643,120]
[367016519,1750618161370,-1155.43,0.00041643,120]
[367016522,1750618161414,-1926.15,0.00041917,120]
[367016523,1750618161458,-825.0,0.00041917,120]
[367016526,1750618161502,-931.78,0.00041917,120]
[367016528,1750618161545,-836.55,0.00041917,120]
[367016530,1750618161587,-1128.02283244,0.00041917,120]
[367016532,1750618161631,-1762.58,0.00041917,120]
[367016533,1750618161674,-799.94,0.00041917,120]
[367016536,1750618161719,-8511.41317096,0.00041917,120]
[367016538,1750618161765,-2109.79,0.00041917,120]
[367016539,1750618161809,-3864.86,0.00041917,120]
[367016542,1750618161854,-4273.02420148,0.00041917,120]
[367016544,1750618161899,-1756.63776253,0.00041917,120]
[367016545,1750618161940,-1838.16041254,0.00041917,120]
[367016548,1750618161984,-3059.84866631,0.00041917,120]
[367016550,1750618162028,-1769.17,0.00041917,120]
[367016552,1750618162069,-580.71,0.00041917,120]
[367016554,1750618162109,-11832.18,0.00041917,120]
[367016555,1750618162148,-1958.31856183,0.00041917,120]
[367016558,1750618162189,-589.28990439,0.00041917,120]
[367016559,1750618162230,-1152.47266065,0.00041917,120]
[367016560,1750618162270,-551.24173758,0.00041917,120]
[367016561,1750618162311,-1197.32753535,0.00041917,120]
[367016562,1750618162352,-523.74,0.00041917,120]
[367016564,1750618162395,-1903.5,0.00041917,120]
[367016566,1750618162436,-41951.78910258,0.00041917,120]
[367016568,1750618162474,-1828.73538894,0.00041917,120]
[367016570,1750618162513,-3014.94326374,0.00041917,120]
[367016572,1750618162553,-1352.4,0.00041917,120]
[367016574,1750618162592,-1712.09,0.00041917,120]
[367016576,1750618162630,-2797.29384065,0.00041917,120]
[367016578,1750618162667,-779.25,0.00041917,120]
[367016580,1750618162707,-1419.05,0.00041917,120]
[367016582,1750618162747,-2473.35,0.00041917,120]
[367016584,1750618162788,-989.1267363,0.00041917,120]
[367016586,1750618162830,-1632.89374975,0.00041917,120]
[367016587,1750618162875,-2080.44871135,0.00041917,120]
[367016590,1750618162916,-7153.73227219,0.00041917,120]
[367016591,1750618162957,-5242.15,0.00041917,120]
[367016593,1750618162997,-24605.47819398,0.00041917,120]
[367016595,1750618163038,-4415.57,0.00041917,120]
[367016598,1750618163078,-1155.59016744,0.00041917,120]
[367016599,1750618163116,-5000.0,0.000425,60]
[367016602,1750618163157,-14357.84181354,0.00042766,30]
[367016604,1750618163197,-150.0,0.00042766,30]
[367016605,1750618163236,-1320.45334633,0.00042766,30]
[367016608,1750618163275,-5000.0,0.000439,120]
[367016610,1750618163313,-20191.14,0.000445,120]
[367016612,1750618163352,-19696.74,0.000445,120]
[367016614,1750618163388,-667.05519938,0.000445,120]
[367016616,1750618163427,-20072.27,0.000445,120]
[367016618,1750618163466,-4208520.25296897,0.00045,120]
[367017407,1750618197208,-1256.41,0.0003384,30]
[367017425,1750618197916,-3772.36085397,0.00039999,31]
[367017427,1750618197957,-3772.36085397,0.00039999,31]
[367017430,1750618197997,-3772.36085397,0.00039999,31]
[367017432,1750618198048,-3772.36085397,0.00039999,31]
[367017434,1750618198087,-3772.36085398,0.00039999,31]
[367017436,1750618198124,-3772.36085398,0.00039999,31]
[367017438,1750618198161,-3772.36085398,0.00039999,31]
[367017440,1750618198198,-166.8157831,0.00039999,31]
[367017442,1750618198268,-153.0,0.00040017,60]
[367017444,1750618198311,-153.0,0.00040017,60]
[367017446,1750618198358,-153.0,0.00040017,60]
[367017448,1750618198404,-153.0,0.00040017,60]
[367017450,1750618198454,-153.0,0.00040017,60]
[367017452,1750618198501,-153.0,0.00040017,60]
[367017454,1750618198548,-153.0,0.00040017,60]
[367017456,1750618198594,-153.0,0.00040017,60]
[367017458,1750618198715,-689.02,0.00041095,120]
[367017459,1750618198765,-490.0,0.00041095,120]
[367017460,1750618198811,-1580.58,0.00041095,120]
[367017463,1750618198861,-493.47,0.00041095,120]
[367017464,1750618198910,-7673.82,0.00041095,120]
[367017466,1750618198958,-1230.14,0.00041095,120]
[367017468,1750618199003,-590.66,0.00041095,120]
[367017470,1750618199049,-1542.41,0.00041095,120]
[367017472,1750618199101,-512.26,0.00041095,120]
[367017474,1750618199144,-3177.15,0.00041095,120]
[367017476,1750618199188,-4175.08,0.00041095,120]
[367017478,1750618199236,-1801.59,0.00041095,120]
[367017480,1750618199277,-3326.48,0.00041095,120]
[367017481,1750618199320,-4611.08,0.00041095,120]
[367017482,1750618199360,-1027.94,0.00041095,120]
[367017483,1750618199756,-537.77,0.00041095,120]
[367017484,1750618199801,-3902.0,0.00041095,120]
[367017485,1750618199846,-6638.38,0.00041095,120]
[367017486,1750618199892,-431.43641748,0.00041095,120]
[367017487,1750618199936,-4966.0,0.00041095,120]
[367017488,1750618199981,-971.9,0.00041095,120]
[367017489,1750618200030,-558.55,0.00041095,120]
[367017490,1750618200076,-3150.75,0.00041095,120]
[367017491,1750618200120,-919.66,0.00041095,120]
[367017492,1750618200165,-571.82,0.00041095,120]
[367017493,1750618200211,-2329.63,0.00041095,120]
[367017494,1750618200255,-1429.91,0.00041095,120]
[367017495,1750618200298,-1643.14,0.00041095,120]
[367017496,1750618200344,-2167.43,0.00041095,120]
[367017497,1750618200390,-4697.86,0.00041095,120]
[367017498,1750618200433,-1262.1,0.00041095,120]
[367017499,1750618200481,-868.42,0.00041095,120]
[367017500,1750618200525,-1294.01,0.00041095,120]
[367017501,1750618200571,-9875.14,0.00041095,120]
[367017502,1750618200615,-2632.92,0.00041095,120]
[367017503,1750618200659,-4645.75,0.00041095,120]
[367017504,1750618200708,-3854.81,0.00041095,120]
[367017505,1750618200755,-1278.15,0.00041095,120]
[367017506,1750618200801,-2775.79,0.00041095,120]
[367017507,1750618200846,-982.72,0.00041095,120]
[367017508,1750618200890,-4534.7,0.00041095,120]
[367017509,1750618200931,-3457.17,0.00041095,120]
[367017510,1750618200976,-6670.92,0.00041095,120]
[367017511,1750618201021,-1292.4,0.00041095,120]
[367017512,1750618201064,-1104.9,0.00041095,120]
[367017513,1750618201108,-4296.21,0.00041095,120]
[367017514,1750618201152,-200.0,0.00041178,120]
[367017515,1750618201194,-200.0,0.00041178,120]
[367017516,1750618201238,-200.0,0.0004118,120]
[367017517,1750618201283,-689.02,0.00041369,120]
[367017518,1750618201327,-490.0,0.00041369,120]
[367017519,1750618201373,-1580.58,0.00041369,120]
[367017520,1750618201419,-493.47,0.00041369,120]
[367017521,1750618201464,-7673.82,0.00041369,120]
[367017522,1750618201510,-1230.14,0.00041369,120]
[367017523,1750618201553,-590.66,0.00041369,120]
[367017524,1750618201598,-1542.41,0.00041369,120]
[367017525,1750618201640,-512.26,0.00041369,120]
[367017526,1750618201686,-3177.15,0.00041369,120]
[367017527,1750618201733,-4175.08,0.00041369,120]
[367017528,1750618201776,-1801.59,0.00041369,120]
[367017529,1750618201820,-3326.48,0.00041369,120]
[367017530,1750618201864,-1027.94,0.00041369,120]
[367017531,1750618201906,-537.77,0.00041369,120]
[367017532,1750618201948,-4611.08,0.00041369,120]
[367017533,1750618201991,-3902.0,0.00041369,120]
[367017534,1750618202035,-6638.38,0.00041369,120]
[367017535,1750618202078,-4966.0,0.00041369,120]
[367017536,1750618202119,-971.9,0.00041369,120]
[367017537,1750618202161,-558.55,0.00041369,120]
[367017538,1750618202204,-3150.75,0.00041369,120]
[367017539,1750618202246,-919.66,0.00041369,120]
[367017540,1750618202288,-571.82,0.00041369,120]
[367017541,1750618202332,-2329.63,0.00041369,120]
[367017542,1750618202376,-1429.91,0.00041369,120]
[367017543,1750618202419,-1643.14,0.00041369,120]
[367017544,1750618202463,-2167.43,0.00041369,120]
[367017545,1750618202503,-4697.86,0.00041369,120]
[367017546,1750618202548,-1262.1,0.00041369,120]
[367017547,1750618202590,-868.42,0.00041369,120]
[367017548,1750618202634,-1294.01,0.00041369,120]
[367017549,1750618202689,-9875.14,0.00041369,120]
[367017550,1750618202736,-2632.92,0.00041369,120]
[367017551,1750618202780,-4645.75,0.00041369,120]
[367017552,1750618202824,-3854.81,0.00041369,120]
[367017553,1750618202868,-1278.15,0.00041369,120]
[367017554,1750618202910,-2775.79,0.00041369,120]
[367017555,1750618202955,-982.72,0.00041369,120]
[367017556,1750618202998,-4534.7,0.00041369,120]
[367017557,1750618203042,-3457.17,0.00041369,120]
[367017558,1750618203088,-6670.92,0.00041369,120]
[367017559,1750618203133,-1292.4,0.00041369,120]
[367017560,1750618203179,-1104.9,0.00041369,120]
[367017561,1750618203225,-4296.21,0.00041369,120]
[367017562,1750618203274,-2128.15,0.00041643,120]
[367017563,1750618203322,-689.02,0.00041643,120]
[367017564,1750618203368,-446.0,0.00041643,120]
[367017565,1750618203415,-1580.58,0.00041643,120]
[367017566,1750618203461,-493.47,0.00041643,120]
[367017567,1750618203509,-7673.82,0.00041643,120]
[367017568,1750618203557,-590.66,0.00041643,120]
[367017569,1750618203604,-1230.14,0.00041643,120]
[367017570,1750618203647,-1542.41,0.00041643,120]
[367017571,1750618203697,-512.26,0.00041643,120]
[367017572,1750618203747,-3177.15,0.00041643,120]
[367017573,1750618203795,-4175.08,0.00041643,120]
[367017574,1750618203843,-1801.59,0.00041643,120]
[367017575,1750618203889,-3326.48,0.00041643,120]
[367017576,1750618203938,-1027.94,0.00041643,120]
[367017577,1750618203991,-537.77,0.00041643,120]
[367017578,1750618204038,-3902.0,0.00041643,120]
[367017579,1750618204088,-6638.38,0.00041643,120]
[367017580,1750618204136,-4611.08,0.00041643,120]
[367017581,1750618204184,-4966.0,0.00041643,120]
[367017582,1750618204233,-971.9,0.00041643,120]
[367017583,1750618204282,-558.55,0.00041643,120]
[367017584,1750618204331,-3150.75,0.00041643,120]
[367017585,1750618204377,-919.66,0.00041643,120]
[367017586,1750618204673,-2329.63,0.00041643,120]
[367017587,1750618204723,-571.82,0.00041643,120]
[367017588,1750618204774,-1429.91,0.00041643,120]
[367017589,1750618204824,-1643.14,0.00041643,120]
[367017590,1750618204874,-2167.43,0.00041643,120]
[367017591,1750618204921,-4697.86,0.00041643,120]
[367017592,1750618204968,-1262.1,0.00041643,120]
[367017593,1750618205016,-868.42,0.00041643,120]
[367017594,1750618205059,-1294.01,0.00041643,120]
[367017595,1750618205105,-9875.14,0.00041643,120]
[367017596,1750618205152,-2632.92,0.00041643,120]
[367017597,1750618205200,-4645.75,0.00041643,120]
[367017598,1750618205247,-3854.81,0.00041643,120]
[367017599,1750618205295,-1278.15,0.00041643,120]
[367017600,1750618205340,-2775.79,0.00041643,120]
[367017602,1750618205387,-982.72,0.00041643,120]
[367017604,1750618205434,-4534.7,0.00041643,120]
[367017605,1750618205483,-3457.17,0.00041643,120]
[367017606,1750618205532,-6670.92,0.00041643,120]
[367017607,1750618205581,-1292.4,0.00041643,120]
[367017608,1750618205629,-1104.9,0.00041643,120]
[367017609,1750618205680,-2128.23839368,0.00041917,120]
[367017610,1750618205732,-689.06156632,0.00041917,120]
[367017611,1750618205783,-1580.66,0.00041917,120]
[367017612,1750618205832,-493.59,0.00041917,120]
[367017613,1750618205880,-7673.94,0.00041917,120]
[367017614,1750618205930,-590.84199375,0.00041917,120]
[367017615,1750618205977,-1230.18,0.00041917,120]
[367017616,1750618206025,-1542.57,0.00041917,120]
[367017617,1750618206071,-512.42,0.00041917,120]
[367017619,1750618206118,-3177.15,0.00041917,120]
[367017623,1750618206165,-4175.16,0.00041917,120]
[367017625,1750618206213,-1801.71727008,0.00041917,120]
[367017626,1750618206261,-3326.56,0.00041917,120]
[367017627,1750618206308,-1028.12658355,0.00041917,120]
[367017628,1750618206355,-537.81172193,0.00041917,120]
[367017629,1750618206402,-3902.0,0.00041917,120]
[367017630,1750618206449,-6638.46,0.00041917,120]
[367017631,1750618206496,-4611.09741045,0.00041917,120]
[367017632,1750618206547,-4966.2,0.00041917,120]
[367017633,1750618206594,-971.9,0.00041917,120]
[367017634,1750618206641,-558.55,0.00041917,120]
[367017635,1750618206688,-3150.95,0.00041917,120]
[367017636,1750618206734,-919.82,0.00041917,120]
[367017637,1750618206783,-2329.71,0.00041917,120]
[367017638,1750618206829,-571.82,0.00041917,120]
[367017639,1750618206877,-1430.11214656,0.00041917,120]
[367017640,1750618206923,-1643.18,0.00041917,120]
[367017641,1750618206972,-2167.45563328,0.00041917,120]
[367017642,1750618207019,-4698.02,0.00041917,120]
[367017643,1750618207066,-1262.3,0.00041917,120]
[367017644,1750618207114,-868.54,0.00041917,120]
[367017645,1750618207165,-1294.17,0.00041917,120]
[367017646,1750618207213,-9875.18,0.00041917,120]
[367017647,1750618207262,-2633.04,0.00041917,120]
[367017648,1750618207310,-4645.8990085,0.00041917,120]
[367017649,1750618207355,-3854.97,0.00041917,120]
[367017650,1750618207402,-1278.15,0.00041917,120]
[367017651,1750618207450,-2775.99943964,0.00041917,120]
[367017652,1750618207499,-982.82,0.00041917,120]
[367017653,1750618207551,-4534.9,0.00041917,120]
[367017654,1750618207604,-3457.17306275,0.00041917,120]
[367017655,1750618207659,-6671.07575184,0.00041917,120]
[367017656,1750618207711,-1292.6,0.00041917,120]
[367017657,1750618207762,-1105.1,0.00041917,120]
[367017658,1750618207812,-500.0,0.00042164,60]
[367017659,1750618207859,-600.0,0.00042164,60]
[367017660,1750618207908,-600.0,0.00042712,60]
[367017661,1750618207957,-1000.0,0.00043,120]
[367017662,1750618208005,-600.0,0.0004326,60]
[367017663,1750618208051,-500.0,0.0004326,60]
[367017664,1750618208097,-600.0,0.00043808,60]
[367017665,1750618208145,-462.05,0.00044064,30]
[367017666,1750618208192,-600.0,0.00044356,120]
[367017667,1750618208243,-615.90891104,0.00044356,120]
[367017668,1750618208292,-19816.67,0.000445,120]
[367017669,1750618208339,-9555.2865062,0.000445,120]
[367017670,1750618208389,-600.0,0.0004463,120]
[367017671,1750618208438,-600.0,0.00044904,120]
[367017672,1750618208496,-1982657.22798345,0.00045,120]
[367017673,1750618208547,-10000.0,0.00045,120]
[367017674,1750618208596,-2000.0,0.00045,120]
[367017675,1750618208646,-30059.73694912,0.00045,120]
[367017676,1750618208694,-3380.14,0.00045,120]
[367017677,1750618208743,-3380.14,0.00045,120]
[367017678,1750618208792,-3380.14,0.00045,120]
[367017679,1750618208841,-3380.14,0.00045,120]
[367017680,1750618208889,-3380.14,0.00045,120]
[367017681,1750618208937,-1352.06,0.00045,120]
[367017682,1750618208983,-1352.06,0.00045,120]
[367017683,1750618209029,-1352.06,0.00045,120]
[367017684,1750618209077,-1352.06,0.00045,120]
[367017685,1750618209125,-1352.06,0.00045,120]
[367017686,1750618209172,-50305.39369983,0.00045,120]
[367017687,1750618209220,-941.79,0.00045,120]
[367017688,1750618209267,-941.79,0.00045,120]
[367017689,1750618209314,-941.79,0.00045,120]
[367017690,1750618209361,-941.79,0.00045,120]
[367017691,1750618209409,-941.79,0.00045,120]
[367017692,1750618209456,-153.04567237,0.00045,120]
[367017693,1750618209506,-9297.1,0.00045,120]
[367017695,1750618209558,-9297.1,0.00045,120]
[367017696,1750618209609,-9297.1,0.00045,120]
[367017697,1750618209920,-9297.1,0.00045,120]
[367017698,1750618209970,-9297.1,0.00045,120]
[367017699,1750618210020,-8202.21,0.00045,120]
[367017700,1750618210068,-8202.21,0.00045,120]
[367017701,1750618210117,-8202.21,0.00045,120]
[367017702,1750618210165,-8202.21,0.00045,120]
[367017703,1750618210215,-8202.21,0.00045,120]
[367017704,1750618210263,-50000.0,0.00045,120]
[367017705,1750618210311,-2522.16,0.00045,120]
[367017706,1750618210360,-2522.16,0.00045,120]
[367017707,1750618210407,-2522.16,0.00045,120]
[367017708,1750618210455,-2522.16,0.00045,120]
[367017709,1750618210504,-2522.16,0.00045,120]
[367017710,1750618210557,-2458.2,0.00045,120]
[367017711,1750618210606,-2458.2,0.00045,120]
[367017712,1750618210654,-2458.2,0.00045,120]
[367017713,1750618210702,-2458.2,0.00045,120]
[367017714,1750618210755,-2458.2,0.00045,120]
[367017715,1750618210803,-3109.68167611,0.00045,90]
[367017716,1750618210853,-955609.6379737,0.00045,120]
[367017717,1750618210900,-20070.99214865,0.00045,120]
[367017718,1750618210948,-1220465.9503188,0.00045,120]
[367017719,1750618224729,-153.0,0.00040016,60]
[367017720,1750618224840,-2795.47,0.00041095,120]
[367017721,1750618224888,-6350.46,0.00041095,120]
[367017722,1750618224936,-686.79,0.00041095,120]
[367017723,1750618224982,-2048.09,0.00041095,120]
[367017724,1750618225028,-2967.23,0.00041095,120]
[367017725,1750618225075,-9352.25,0.00041095,120]
[367017726,1750618225121,-3638.59,0.00041095,120]
[367017727,1750618225168,-2771.07,0.00041095,120]
[367017728,1750618225215,-813.3,0.00041095,120]
[367017729,1750618225263,-2552.62,0.00041095,120]
[367017730,1750618225311,-1660.35,0.00041095,120]
[367017731,1750618225359,-6235.59,0.00041095,120]
[367017732,1750618225406,-1850.46,0.00041095,120]
[367017733,1750618225454,-3455.54,0.00041095,120]
[367017734,1750618225502,-15333.89,0.00041095,120]
[367017735,1750618225555,-490.0,0.00041095,120]
[367017736,1750618225605,-1757.65,0.00041095,120]
[367017737,1750618225655,-575.45,0.00041095,120]
[367017738,1750618225706,-200.0,0.00041178,120]
[367017739,1750618225755,-200.0,0.00041178,120]
[367017740,1750618225804,-2795.47,0.00041369,120]
[367017741,1750618225854,-6350.46,0.00041369,120]
[367017742,1750618225901,-686.79,0.00041369,120]
[367017743,1750618225950,-2048.09,0.00041369,120]
[367017744,1750618225999,-2967.23,0.00041369,120]
[367017745,1750618226047,-9352.25,0.00041369,120]
[367017746,1750618226094,-3638.59,0.00041369,120]
[367017747,1750618226141,-2771.07,0.00041369,120]
[367017748,1750618226188,-813.3,0.00041369,120]
[367017749,1750618226237,-2552.62,0.00041369,120]
[367017750,1750618226285,-1660.35,0.00041369,120]
[367017751,1750618226332,-6235.59,0.00041369,120]
[367017752,1750618226380,-1850.46,0.00041369,120]
[367017753,1750618226427,-3455.54,0.00041369,120]
[367017754,1750618226476,-15333.89,0.00041369,120]
[367017755,1750618226524,-490.0,0.00041369,120]
[367017756,1750618226572,-1757.65,0.00041369,120]
[367017757,1750618226620,-575.45,0.00041369,120]
[367017758,1750618226670,-150.0,0.00041452,120]
[367017759,1750618226717,-150.0,0.00041452,120]
[367017760,1750618226766,-4296.21,0.00041643,120]
[367017761,1750618226814,-2795.47,0.00041643,120]
[367017762,1750618226863,-6350.46,0.00041643,120]
[367017763,1750618226909,-686.79,0.00041643,120]
[367017764,1750618226956,-2048.09,0.00041643,120]
[367017765,1750618227002,-2967.23,0.00041643,120]
[367017766,1750618227050,-9352.25,0.00041643,120]
[367017767,1750618227098,-3638.59,0.00041643,120]
[367017768,1750618227149,-2771.07,0.00041643,120]
[367017769,1750618227198,-813.3,0.00041643,120]
[367017770,1750618227248,-2552.62,0.00041643,120]
[367017771,1750618227295,-1660.35,0.00041643,120]
[367017772,1750618227343,-6235.59,0.00041643,120]
[367017773,1750618227391,-1850.46,0.00041643,120]
[367017774,1750618227439,-3455.54,0.00041643,120]
[367017775,1750618227488,-15333.89,0.00041643,120]
[367017776,1750618227536,-562.2,0.00041643,120]
[367017777,1750618227585,-1757.65,0.00041643,120]
[367017778,1750618227635,-575.45,0.00041643,120]
[367017779,1750618227683,-4296.37,0.00041917,120]
[367017780,1750618227732,-2795.69147961,0.00041917,120]
[367017781,1750618227780,-6350.53738717,0.00041917,120]
[367017782,1750618227827,-686.83,0.00041917,120]
[367017783,1750618227875,-2048.13,0.00041917,120]
[367017784,1750618227923,-2967.31,0.00041917,120]
[367017785,1750618227971,-9352.25,0.00041917,120]
[367017786,1750618228019,-3638.83,0.00041917,120]
[367017787,1750618228065,-2771.19,0.00041917,120]
[367017788,1750618228112,-813.5,0.00041917,120]
[367017789,1750618228160,-2552.76774658,0.00041917,120]
[367017790,1750618228205,-1660.55347826,0.00041917,120]
[367017791,1750618228253,-6235.63,0.00041917,120]
[367017792,1750618228299,-1850.61326407,0.00041917,120]
[367017793,1750618228346,-3455.58,0.00041917,120]
[367017794,1750618228399,-15333.93,0.00041917,120]
[367017795,1750618228451,-1757.65,0.00041917,120]
[367017796,1750618228504,-500.0,0.00044999,120]
[367017797,1750618228559,-451.0,0.00044999,120]
[367017798,1750618228610,-500.0,0.00044999,120]
[367017799,1750618228662,-151.0,0.00044999,120]
[367017800,1750618228712,-500.0,0.00044999,120]
[367017801,1750618228762,-151.0,0.00044999,120]
[367017802,1750618228811,-500.0,0.00044999,120]
[367017803,1750618228858,-500.0,0.00044999,120]
[367017804,1750618228904,-500.0,0.00044999,120]
[367017805,1750618228949,-151.0,0.00044999,120]
[367017806,1750618228995,-500.0,0.00044999,120]
[367017807,1750618229039,-518.5,0.00044999,120]
[367017808,1750618229084,-500.0,0.00044999,120]
[367017809,1750618229132,-151.0,0.00044999,120]
[367017810,1750618229177,-537.6845,0.00044999,120]
[367017811,1750618229227,-500.0,0.00044999,120]
[367017812,1750618229272,-500.0,0.00044999,120]
[367017813,1750618229317,-557.5788265,0.00044999,120]
[367017814,1750618229578,-500.0,0.00044999,120]
[367017815,1750618229628,-350.63556369,0.00044999,120]
[367017816,1750618229675,-578.20924308,0.00044999,120]
[367017817,1750618229726,-500.0,0.00044999,120]
[367017818,1750618229772,-599.60298507,0.00044999,120]
[367017819,1750618229820,-500.0,0.00044999,120]
[367017820,1750618229866,-621.78829552,0.00044999,120]
[367017821,1750618229913,-500.0,0.00044999,120]
[367017822,1750618229958,-644.79446246,0.00044999,120]
[367017823,1750618230005,-500.0,0.00044999,120]